bitfinex-derivatives/quotes_BTCF0:USTF0_20250108
["timestamp","ask_amount","ask_price","bid_price","bid_amount"]
[1736363448731,0.210269,94776.0,94775.0,0.3608]
[1736363449033,0.052775,94765.0,94762.0,0.052776]
[1736363449219,0.1575,94776.0,94764.0,0.052775]
[1736363449423,0.14710823,94766.0,94761.0,1.50064]
[1736363449722,0.14710823,94766.0,94764.0,0.002]
[1736363450731,0.052775,94765.0,94764.0,0.002]
[1736363451031,0.052775,94765.0,94764.0,0.054775]
[1736363451229,0.052775,94765.0,94764.0,0.059775]
[1736363451924,0.052775,94765.0,94764.0,0.007]
[1736363452332,0.052775,94765.0,94764.0,0.005]
[1736363453228,0.052771,94772.0,94764.0,0.007]
[1736363453432,0.52099948,94790.0,94771.0,0.3608]
[1736363453433,0.052768,94778.0,94771.0,0.3608]
[1736363453632,0.09437609,94779.0,94771.0,0.3608]
[1736363453931,0.052771,94774.0,94773.0,0.05277]
[1736363454525,0.052771,94774.0,94773.0,1.55277]
[1736363455629,0.052771,94774.0,94773.0,1.5]
[1736363455832,0.06382993,94782.0,94771.0,0.3618]
[1736363456033,0.052771,94772.0,94771.0,0.3618]
[1736363456436,0.052771,94772.0,94771.0,0.3608]
[1736363457128,0.052771,94772.0,94771.0,0.3648]
[1736363458039,0.14714709,94772.0,94771.0,0.3648]
[1736363458223,0.09437609,94772.0,94771.0,0.413571]
[1736363458420,0.09437609,94772.0,94771.0,0.416571]
[1736363458631,0.09437609,94772.0,94771.0,0.418571]
[1736363459029,0.09437609,94772.0,94771.0,1.918571]
[1736363459230,0.09437609,94785.0,94771.0,1.8658]
[1736363459427,0.16019948,94781.0,94779.0,0.3608]
[1736363459731,0.052769,94775.0,94774.0,0.052769]
[1736363459933,0.09437609,94785.0,94771.0,1.86536]
[1736363460127,0.09437609,94785.0,94771.0,1.8618]
[1736363460430,0.052771,94772.0,94771.0,0.3648]
[1736363460824,0.052771,94772.0,94771.0,0.3618]
[1736363461628,0.052771,94772.0,94771.0,0.3648]
[1736363462234,0.10411667,94772.0,94771.0,0.3638]
[1736363463141,0.10411667,94772.0,94771.0,0.3648]
[1736363463328,0.10411667,94772.0,94771.0,0.3618]
[1736363463530,0.11527255,94772.0,94771.0,0.3618]
[1736363463940,0.11527255,94772.0,94771.0,0.3608]
[1736363464138,0.11727255,94772.0,94771.0,0.3608]
[1736363464333,0.052781,94754.0,94753.0,0.0006]
[1736363464541,0.052782,94752.0,94751.0,0.00158298]
[1736363465138,0.413582,94752.0,94751.0,0.00158298]
[1736363465838,0.42493758,94752.0,94751.0,0.00158298]
[1736363466338,0.052788,94741.0,94740.0,0.25288221]
[1736363466538,0.413588,94741.0,94740.0,0.25288221]
[1736363466743,0.052796,94727.0,94717.0,0.1547]
[1736363466944,0.052796,94727.0,94714.0,0.25288221]
[1736363466945,0.3608,94727.0,94714.0,0.25288221]
[1736363467138,0.052803,94715.0,94714.0,0.25288221]
[1736363467346,0.413603,94715.0,94714.0,0.25288221]
[1736363467846,0.052803,94715.0,94714.0,0.25288221]
[1736363468239,0.052803,94715.0,94714.0,0.26188221]
[1736363468551,0.052803,94715.0,94714.0,0.009]
[1736363468735,0.09401829,94719.0,94714.0,0.009]
[1736363469044,0.12535772,94726.0,94725.0,0.052797]
[1736363469433,0.001,94727.0,94725.0,0.052797]
[1736363469840,0.15669715,94734.0,94732.0,0.052793]
[1736363470040,0.052791,94736.0,94734.0,0.052792]
[1736363470442,0.3608,94746.0,94720.0,0.413599]
[1736363470443,0.052787,94744.0,94720.0,0.413599]
[1736363470645,0.001,94727.0,94725.0,0.006]
[1736363470941,0.052797,94726.0,94725.0,0.008]
[1736363471141,0.052797,94726.0,94725.0,0.002]
[1736363472139,0.3608,94729.0,94725.0,0.002]
[1736363472339,0.052797,94726.0,94725.0,0.002]
[1736363472539,0.3608,94729.0,94727.0,0.052796]
[1736363472745,0.3608,94729.0,94725.0,0.002]
[1736363472746,0.052789,94740.0,94734.0,0.052792]
[1736363472947,0.01112795,94743.0,94733.0,0.052792]
[1736363473138,0.052794,94730.0,94728.0,1.50064]
[1736363473342,0.052797,94726.0,94725.0,0.007]
[1736363473551,0.052797,94726.0,94725.0,0.005]
[1736363473948,0.3608,94727.0,94720.0,0.0568]
[1736363474155,0.052799,94722.0,94720.0,0.004]
[1736363474457,0.3608,94727.0,94713.0,1.5006]
[1736363474752,0.3608,94727.0,94725.0,0.005]
[1736363474753,0.052797,94726.0,94725.0,0.005]
[1736363475250,0.052804,94712.0,94700.0,0.4608]
[1736363475451,0.413604,94712.0,94700.0,0.1]
[1736363475754,0.05281,94701.0,94700.0,0.1]
[1736363475954,0.41361,94701.0,94700.0,0.1]
[1736363477350,0.052822,94680.0,94679.0,0.25288221]
[1736363477543,0.3608,94688.0,94679.0,0.25288221]
[1736363477746,0.052822,94680.0,94679.0,0.25288221]
[1736363477951,0.052823,94679.0,94675.0,0.01276619]
[1736363478856,0.16019948,94689.0,94675.0,0.01276619]
[1736363479051,0.052824,94678.0,94675.0,0.01276619]
[1736363479357,0.052824,94677.0,94675.0,0.01276619]
[1736363479760,0.052824,94677.0,94675.0,0.0015843]
[1736363480058,0.3608,94676.0,94675.0,0.0015843]
[1736363480658,0.3608,94676.0,94675.0,0.0105843]
[1736363481045,0.3608,94676.0,94675.0,0.0095843]
[1736363481249,0.3608,94676.0,94675.0,0.0065843]
[1736363481451,0.3608,94676.0,94675.0,0.0594093]
[1736363481452,0.001,94676.0,94675.0,0.0594093]
[1736363481855,0.001,94676.0,94675.0,1.5594093]
[1736363482056,0.001,94676.0,94675.0,1.5065843]
[1736363482353,0.053824,94676.0,94675.0,0.0065843]
[1736363483360,0.052837,94655.0,94633.0,0.3608]
[1736363483559,0.052826,94675.0,94600.0,0.1]
[1736363483560,0.3608,94657.0,94641.0,0.052843]
[1736363483747,0.05284,94649.0,94634.0,1.5]
[1736363483952,0.3608,94657.0,94655.0,0.052836]
[1736363484156,0.052827,94672.0,94660.0,0.052833]
[1736363484355,0.01252727,94676.0,94657.0,0.3608]
[1736363484356,0.16019948,94670.0,94657.0,0.3608]
[1736363484559,0.052824,94678.0,94671.0,0.052827]
[1736363485073,0.16019948,94680.0,94671.0,0.052827]
[1736363485261,0.16019948,94680.0,94669.0,0.3608]
[1736363485560,0.052827,94671.0,94670.0,1.5]
[1736363486063,0.052834,94658.0,94657.0,0.3608]
[1736363486454,0.052834,94658.0,94643.0,0.3608]
[1736363486455,0.3608,94669.0,94644.0,1.5]
[1736363486655,0.16019948,94660.0,94644.0,1.5]
[1736363486859,0.052834,94659.0,94644.0,1.5]
[1736363487053,0.3608,94669.0,94644.0,1.5]
[1736363487054,0.16019948,94660.0,94644.0,1.5]
[1736363487258,0.052842,94644.0,94643.0,0.3608]
[1736363487853,0.05285,94630.0,94628.0,0.3608]
[1736363488258,0.052846,94638.0,94624.0,0.00056]
[1736363488468,0.052853,94625.0,94619.0,0.3608]
[1736363489865,0.16019948,94633.0,94600.0,0.4608]
[1736363489866,0.052866,94603.0,94600.0,0.4608]
[1736363490162,0.052866,94602.0,94600.0,0.4608]
[1736363490665,0.052873,94589.0,94587.0,0.3608]
[1736363490853,0.052881,94575.0,94574.0,0.3608]
[1736363491561,0.052876,94584.0,94574.0,0.3608]
[1736363491756,0.16019948,94590.0,94583.0,0.3608]
[1736363491953,0.052876,94584.0,94583.0,0.3608]
[1736363492162,0.052876,94584.0,94574.0,0.3608]
[1736363492363,0.052877,94582.0,94574.0,0.3608]
[1736363492564,0.16019948,94590.0,94574.0,0.3608]
[1736363492765,0.052878,94581.0,94574.0,0.3608]
[1736363493160,0.01130115,94588.0,94574.0,0.3608]
[1736363493367,0.052879,94579.0,94574.0,0.3608]
[1736363493968,0.3608,94588.0,94574.0,0.3608]
[1736363494167,0.052877,94582.0,94574.0,0.3608]
[1736363494356,0.001,94575.0,94574.0,0.3688]
[1736363494763,0.001,94575.0,94574.0,0.3718]
[1736363494965,0.41367,94596.0,94582.0,0.052877]
[1736363495161,0.16019948,94590.0,94588.0,0.3608]
[1736363495361,0.3608,94596.0,94588.0,0.3608]
[1736363495561,0.052872,94590.0,94588.0,0.3608]
[1736363495769,0.052872,94590.0,94589.0,1.5]
[1736363495979,0.052872,94590.0,94588.0,0.3608]
[1736363496463,0.052878,94580.0,94574.0,0.3688]
[1736363496658,0.05288,94576.0,94574.0,0.3678]
[1736363497271,0.05288,94576.0,94574.0,0.3628]
[1736363497463,0.05288,94576.0,94574.0,0.3608]
[1736363498069,0.05288,94576.0,94574.0,0.3648]
[1736363498475,0.05288,94576.0,94574.0,0.3608]
[1736363499066,0.1,94580.0,94574.0,0.3608]
[1736363499261,0.1,94580.0,94579.0,0.3608]
[1736363499472,0.152878,94580.0,94579.0,0.3608]
[1736363499867,0.1,94580.0,94579.0,0.3608]
[1736363501171,0.1,94580.0,94579.0,0.3628]
[1736363501372,0.1,94580.0,94579.0,0.003]
[1736363501670,0.1,94580.0,94579.0,0.001]
[1736363501974,0.1,94580.0,94579.0,0.003]
[1736363502362,0.4608,94580.0,94579.0,0.003]
[1736363502567,0.105758,94578.0,94556.0,0.3608]
[1736363502768,0.052891,94557.0,94556.0,0.3608]
[1736363503976,0.052896,94548.0,94539.0,0.3608]
[1736363504360,0.3608,94551.0,94518.0,0.3608]
[1736363504563,0.052909,94525.0,94518.0,0.3608]
[1736363504759,0.052906,94531.0,94519.0,0.052912]
[1736363504965,0.16019948,94540.0,94518.0,0.3608]
[1736363505170,0.052896,94549.0,94537.0,0.3608]
[1736363505464,0.16019948,94550.0,94537.0,0.3608]
[1736363505659,0.21309448,94550.0,94545.0,0.3608]
[1736363505865,0.16019948,94550.0,94546.0,1.5]
[1736363506062,0.001,94551.0,94546.0,1.5]
[1736363506576,0.001,94551.0,94549.0,0.052895]
[1736363507369,0.16019948,94560.0,94549.0,0.052895]
[1736363507570,0.16019948,94560.0,94555.0,0.3608]
[1736363507777,0.052891,94557.0,94555.0,0.3608]
[1736363508280,0.16019948,94560.0,94549.0,0.001]
[1736363508577,0.052895,94550.0,94549.0,0.001]
[1736363509372,0.052895,94550.0,94544.0,0.3608]
[1736363509575,0.16019948,94554.0,94544.0,0.3608]
[1736363509769,0.052896,94548.0,94544.0,0.3608]
[1736363510770,0.004,94551.0,94550.0,0.052895]
[1736363511179,0.052885,94567.0,94544.0,0.72516]
[1736363511478,0.052885,94567.0,94566.0,0.3608]
[1736363512368,0.052885,94567.0,94550.0,0.1659]
[1736363512369,0.16019948,94570.0,94560.0,0.3608]
[1736363512763,0.16019948,94570.0,94553.0,0.052893]
[1736363512963,0.16019948,94563.0,94553.0,0.052893]
[1736363513168,0.052891,94558.0,94550.0,0.001]
[1736363513775,0.16019948,94563.0,94550.0,0.001]
[1736363514174,0.052891,94558.0,94550.0,0.001]
[1736363514375,0.16019948,94563.0,94556.0,0.3608]
[1736363514376,0.052888,94563.0,94556.0,0.3608]
[1736363514571,0.006,94567.0,94558.0,0.05289]
[1736363514769,0.054885,94567.0,94558.0,0.05289]
[1736363514974,0.052886,94566.0,94558.0,0.05289]
[1736363515171,0.002,94567.0,94560.0,0.052889]
[1736363515380,0.052889,94561.0,94556.0,0.3608]
[1736363515580,0.052885,94567.0,94557.0,0.3608]
[1736363515774,0.052885,94567.0,94566.0,0.3608]
[1736363516686,0.053885,94567.0,94566.0,0.3608]
[1736363516985,0.05289,94560.0,94558.0,0.00056]
[1736363517181,0.05289,94559.0,94557.0,0.3608]
[1736363518276,0.05489,94559.0,94557.0,0.3608]
[1736363518982,0.002,94559.0,94550.0,0.052895]
[1736363519181,0.002,94559.0,94558.0,0.3608]
[1736363519379,0.05489,94559.0,94555.0,0.3608]
[1736363519875,0.052891,94558.0,94555.0,0.3608]
[1736363520178,0.002,94559.0,94555.0,0.3608]
[1736363520378,0.052891,94557.0,94555.0,0.3608]
[1736363521284,0.052893,94553.0,94552.0,0.25081903]
[1736363522187,0.052894,94551.0,94550.0,0.25081903]
[1736363522485,0.052894,94551.0,94542.0,0.31352379]
[1736363522486,0.052899,94543.0,94542.0,0.31352379]
[1736363522669,0.052899,94543.0,94524.0,0.3608]
[1736363522670,0.052903,94535.0,94505.0,0.3608]
[1736363522875,0.413712,94520.0,94503.0,0.56498283]
[1736363523075,0.052916,94512.0,94503.0,0.56498283]
[1736363523277,0.052921,94504.0,94503.0,0.56498283]
[1736363523490,0.3608,94504.0,94501.0,0.44291699]
[1736363523679,0.052921,94503.0,94501.0,0.44291699]
[1736363525590,0.052922,94501.0,94492.0,0.3608]
[1736363525882,0.052922,94501.0,94484.0,1.8608]
[1736363526088,0.052931,94486.0,94484.0,0.3608]
[1736363526584,0.052922,94501.0,94484.0,0.3608]
[1736363526782,0.05150381,94500.0,94498.0,0.3608]
[1736363526981,0.05150381,94500.0,94498.0,0.413724]
[1736363527378,0.05150381,94500.0,94499.0,0.3608]
[1736363527586,0.18730569,94504.0,94499.0,0.5306]
[1736363527790,0.001,94501.0,94499.0,0.5306]
[1736363527979,0.001,94501.0,94500.0,1.5]
[1736363528382,0.15604546,94516.0,94514.0,0.052915]
[1736363528585,0.18730569,94525.0,94516.0,0.052914]
[1736363528886,0.18730569,94525.0,94515.0,0.7216]
[1736363528887,0.18730569,94525.0,94524.0,0.413709]
[1736363529278,0.052896,94548.0,94539.0,0.052901]
[1736363529478,0.21765734,94550.0,94541.0,0.0529]
[1736363529687,0.21765734,94550.0,94540.0,0.3608]
[1736363529875,0.0529,94542.0,94540.0,0.3608]
[1736363530077,0.21765734,94550.0,94540.0,0.3608]
[1736363530279,0.21765734,94550.0,94548.0,0.3608]
[1736363530487,0.21765734,94550.0,94549.0,0.052895]
[1736363530873,0.12481571,94554.0,94552.0,0.052893]
[1736363531282,0.052895,94549.0,94548.0,0.3608]
[1736363531476,0.12481571,94554.0,94548.0,0.3608]
[1736363531675,0.12481571,94554.0,94552.0,0.052893]
[1736363531877,0.12481571,94554.0,94553.0,0.3608]
[1736363532174,0.052886,94565.0,94555.0,0.052892]
[1736363532377,0.052886,94565.0,94563.0,0.3608]
[1736363532584,0.37377114,94570.0,94552.0,0.006]
[1736363532585,0.052893,94553.0,94552.0,0.006]
[1736363532781,0.052893,94553.0,94548.0,0.003]
[1736363532973,0.3608,94549.0,94528.0,0.3608]
[1736363533174,0.24895543,94540.0,94528.0,0.3608]
[1736363533478,0.24895543,94540.0,94522.0,0.00158688]
[1736363533878,0.052905,94532.0,94522.0,0.00158688]
[1736363534285,0.26011779,94540.0,94525.0,0.3608]
[1736363534286,0.052901,94540.0,94525.0,0.3608]
[1736363534479,0.052901,94540.0,94533.0,0.3608]
[1736363534673,0.053901,94540.0,94533.0,0.3608]
[1736363535292,0.17944167,94539.0,94525.0,0.3608]
[1736363535587,0.052902,94538.0,94525.0,0.3608]
[1736363535889,0.052902,94538.0,94529.0,0.052906]
[1736363536476,0.12654067,94539.0,94529.0,0.052906]
[1736363536678,0.12654067,94539.0,94525.0,0.3638]
[1736363536679,0.052904,94534.0,94525.0,0.3638]
[1736363536885,0.052906,94530.0,94525.0,0.003]
[1736363537089,0.052906,94530.0,94525.0,0.3638]
[1736363537384,0.052903,94536.0,94525.0,0.3638]
[1736363537591,0.3608,94540.0,94531.0,0.052905]
[1736363537791,0.001,94534.0,94533.0,0.052904]
[1736363537987,0.001,94534.0,94533.0,0.413704]
[1736363538496,0.21765734,94547.0,94533.0,0.3608]
[1736363538791,0.27054834,94557.0,94548.0,0.052896]
[1736363539093,0.052892,94556.0,94549.0,0.052895]
[1736363539285,0.052892,94556.0,94550.0,0.052895]
[1736363539485,0.052892,94555.0,94550.0,0.052895]
[1736363539685,0.21765734,94557.0,94545.0,1.8614]
[1736363539894,0.052894,94551.0,94545.0,1.8608]
[1736363540189,0.052892,94556.0,94547.0,0.052896]
[1736363540394,0.05289,94560.0,94552.0,0.052894]
[1736363541077,0.3608,94562.0,94545.0,0.36236]
[1736363541276,0.052894,94552.0,94545.0,0.3618]
[1736363541475,0.052895,94550.0,94545.0,0.3608]
[1736363541884,0.001,94555.0,94549.0,0.052895]
[1736363542083,0.052897,94547.0,94545.0,0.3608]
[1736363542593,0.7216,94552.0,94516.0,0.3608]
[1736363542787,0.052909,94526.0,94518.0,0.052912]
[1736363542987,0.052909,94526.0,94512.0,0.052916]
[1736363543196,0.052909,94526.0,94504.0,0.3608]
[1736363543197,0.052909,94526.0,94517.0,0.052913]
[1736363543392,0.052909,94526.0,94504.0,0.3608]
[1736363544086,0.052909,94526.0,94524.0,0.00258684]
[1736363544479,0.12477079,94529.0,94524.0,0.00258684]
[1736363544687,0.12477079,94529.0,94527.0,0.052908]
[1736363544885,0.12477079,94529.0,94528.0,0.3608]
[1736363545493,0.052906,94531.0,94528.0,0.3608]
[1736363545889,0.052906,94531.0,94529.0,1.5]
[1736363546091,0.052907,94529.0,94528.0,0.3608]
[1736363546291,0.052909,94525.0,94524.0,0.00258684]
[1736363547189,0.124914,94534.0,94524.0,0.00258684]
[1736363547387,0.052904,94533.0,94524.0,0.00258684]
[1736363547586,0.052908,94528.0,94524.0,0.00258684]
[1736363547989,0.124914,94534.0,94524.0,0.00158684]
[1736363548286,0.05148182,94537.0,94535.0,0.052903]
[1736363548686,0.05148182,94537.0,94536.0,0.3608]
[1736363549400,0.05148182,94537.0,94536.0,1.913703]
[1736363549692,0.053902,94537.0,94536.0,1.8608]
[1736363549889,0.3618,94537.0,94524.0,0.00258684]
[1736363550086,0.16133351,94534.0,94524.0,0.00258684]
[1736363550589,0.052908,94526.0,94524.0,0.00258684]
[1736363550890,0.052909,94525.0,94524.0,0.00158684]
[1736363551591,0.052912,94519.0,94518.0,0.3608]
[1736363551796,0.052912,94519.0,94509.0,0.3608]
[1736363551797,0.052917,94510.0,94509.0,0.3608]
[1736363552094,0.052917,94510.0,94488.0,0.00158748]
[1736363552095,0.3608,94510.0,94488.0,0.00158748]
[1736363552294,0.052931,94486.0,94461.0,0.052944]
[1736363552495,0.052931,94486.0,94458.0,0.37830695]
[1736363552797,0.052946,94460.0,94458.0,0.37830695]
[1736363553093,0.3608,94470.0,94458.0,0.37830695]
[1736363553501,0.3608,94470.0,94466.0,0.052942]
[1736363553702,0.3608,94470.0,94458.0,0.37830695]
[1736363554200,0.12489601,94467.0,94458.0,0.001]
[1736363554599,0.052942,94466.0,94458.0,0.001]
[1736363554898,0.052943,94464.0,94458.0,0.001]
[1736363555190,0.052944,94462.0,94458.0,0.007]
[1736363555399,0.052944,94462.0,94458.0,0.008]
[1736363555590,0.052944,94462.0,94458.0,0.3688]
[1736363555898,0.052944,94462.0,94459.0,1.5]
[1736363556196,0.001,94466.0,94459.0,1.5]
[1736363556788,0.001,94462.0,94459.0,1.5]
[1736363556984,0.001,94462.0,94458.0,0.3688]
[1736363557293,0.001,94462.0,94461.0,0.052945]
[1736363557493,0.001,94462.0,94461.0,1.552945]
[1736363557994,0.001,94462.0,94461.0,1.5]
[1736363558194,0.002,94462.0,94461.0,1.5]
[1736363558992,0.053944,94462.0,94461.0,1.5]
[1736363559193,0.001,94462.0,94461.0,1.5]
[1736363559492,0.001,94462.0,94459.0,0.004]
[1736363559696,0.052945,94461.0,94459.0,0.004]
[1736363560393,0.413744,94462.0,94461.0,0.004]
[1736363560597,0.42556421,94462.0,94461.0,0.005]
[1736363561099,0.42456421,94462.0,94461.0,0.004]
[1736363561496,0.42456421,94462.0,94439.0,0.00158819]
[1736363561694,0.3608,94446.0,94439.0,0.00158819]
[1736363561888,0.052956,94441.0,94439.0,0.00158819]
[1736363562087,0.3608,94446.0,94416.0,0.01100214]
[1736363562395,0.052962,94431.0,94414.0,0.3608]
[1736363562800,0.3608,94432.0,94423.0,0.3608]
[1736363562997,0.3608,94432.0,94423.0,0.413765]
[1736363563394,0.3608,94437.0,94425.0,0.052965]
[1736363563595,0.5313,94458.0,94432.0,0.3608]
[1736363563796,0.12489601,94441.0,94432.0,0.3608]
[1736363564196,0.12489601,94441.0,94440.0,0.413756]
[1736363564595,0.3608,94458.0,94440.0,0.3608]
[1736363564898,0.052942,94466.0,94457.0,0.3608]
[1736363565105,0.052942,94466.0,94456.0,0.052947]
[1736363565106,0.413742,94466.0,94456.0,0.052947]
[1736363565603,0.1687,94479.0,94465.0,0.3608]
[1736363565897,0.1687,94479.0,94466.0,1.5]
[1736363566096,0.05294,94469.0,94465.0,0.33879999]
[1736363566304,0.052942,94467.0,94465.0,0.33879999]
[1736363566798,0.055942,94466.0,94465.0,0.33879999]
[1736363567599,0.003,94466.0,94465.0,0.33879999]
[1736363568005,0.003,94466.0,94465.0,1.83879999]
[1736363569008,0.013,94467.0,94465.0,0.33879999]
[1736363569597,0.009,94466.0,94465.0,0.39174199]
[1736363569794,0.052929,94489.0,94465.0,0.39174199]
[1736363570010,0.004,94466.0,94465.0,0.39174199]
[1736363570199,0.004,94466.0,94465.0,0.75254199]
[1736363570892,0.004,94466.0,94465.0,0.75354199]
[1736363571598,0.005,94466.0,94465.0,0.70059999]
[1736363571807,0.005,94466.0,94465.0,0.33979999]
[1736363572005,0.1742,94466.0,94465.0,0.33979999]
[1736363572203,0.1702,94466.0,94465.0,0.33979999]
[1736363572412,0.1702,94466.0,94465.0,0.34679999]
[1736363573209,0.01071973,94472.0,94465.0,0.34079999]
[1736363573509,0.001,94466.0,94465.0,0.34979999]
[1736363574109,0.001,94466.0,94465.0,0.34779999]
[1736363574696,0.052942,94467.0,94465.0,0.33979999]
[1736363575402,0.1692,94479.0,94465.0,0.33979999]
[1736363575403,0.16159227,94475.0,94465.0,0.33979999]
[1736363575604,0.052938,94474.0,94468.0,0.05294]
[1736363575903,0.16159227,94475.0,94469.0,0.05294]
[1736363576111,0.16159227,94475.0,94473.0,0.3608]
[1736363576309,0.052937,94475.0,94473.0,0.3608]
[1736363576810,0.16159227,94483.0,94473.0,0.3608]
[1736363576811,0.052927,94493.0,94484.0,0.052932]
[1736363577003,0.16159227,94510.0,94491.0,0.3608]
[1736363577311,0.383816,94512.0,94491.0,0.3608]
[1736363577312,0.052927,94493.0,94491.0,0.3608]
[1736363578306,0.052927,94493.0,94491.0,0.3658]
[1736363578502,0.16159227,94501.0,94491.0,0.3658]
[1736363578708,0.052926,94494.0,94491.0,0.3658]
[1736363578909,0.052927,94493.0,94491.0,0.3658]
[1736363579119,0.052925,94496.0,94491.0,0.3658]
[1736363579416,0.052927,94493.0,94491.0,0.3658]
[1736363580112,0.052927,94493.0,94491.0,0.3668]
[1736363580308,0.052927,94493.0,94491.0,0.3618]
[1736363580515,0.052927,94493.0,94491.0,0.3628]
[1736363580909,0.052927,94492.0,94491.0,0.3628]
[1736363581104,0.001,94493.0,94491.0,0.3608]
[1736363581304,0.001,94493.0,94492.0,0.052927]
[1736363583407,0.17789267,94503.0,94491.0,0.37190833]
[1736363583716,0.12497167,94503.0,94502.0,0.3608]
[1736363583917,0.12497167,94503.0,94502.0,0.413722]
[1736363584126,0.15594188,94511.0,94510.0,0.052917]
[1736363584416,0.15594188,94511.0,94510.0,0.413717]
[1736363584622,0.1,94520.0,94510.0,0.3608]
[1736363584623,0.20885588,94517.0,94510.0,0.3608]
[1736363584917,0.15594188,94517.0,94516.0,0.052914]
[1736363585117,0.18667926,94526.0,94525.0,0.052909]
[1736363585324,0.1,94540.0,94539.0,0.052901]
[1736363585522,0.24890569,94552.0,94543.0,0.052899]
[1736363585712,0.31113211,94558.0,94543.0,0.6608]
[1736363585911,0.31113211,94558.0,94557.0,0.413691]
[1736363586311,0.1,94580.0,94557.0,0.6608]
[1736363586611,0.1,94580.0,94560.0,0.3608]
[1736363586814,0.1,94580.0,94579.0,0.7216]
[1736363588125,0.2,94600.0,94579.0,1.0226]
[1736363588314,0.2,94600.0,94599.0,0.3608]
[1736363589110,0.2,94600.0,94599.0,1.8608]
[1736363589727,0.00620883,94600.0,94599.0,1.8608]
[1736363590023,0.01520883,94600.0,94599.0,1.8618]
[1736363590523,0.00720883,94600.0,94599.0,1.8698]
[1736363590721,0.00720883,94600.0,94599.0,0.3738]
[1736363591623,0.00720883,94600.0,94599.0,0.422667]
[1736363591826,0.00720883,94600.0,94599.0,0.425667]
[1736363592526,0.00720883,94600.0,94599.0,0.3728]
[1736363593117,0.00720883,94600.0,94583.0,0.3608]
[1736363593319,0.052872,94590.0,94583.0,0.3608]
[1736363594012,0.17160883,94600.0,94583.0,0.3608]
[1736363594013,0.052875,94585.0,94583.0,0.3608]
[1736363594323,0.052876,94583.0,94580.0,0.0015858]
[1736363594526,0.052872,94592.0,94580.0,0.0015858]
[1736363594829,0.17060883,94600.0,94584.0,0.3608]
[1736363594830,0.052868,94599.0,94584.0,0.3608]
[1736363595026,0.052869,94597.0,94584.0,0.3608]
[1736363595929,0.18120885,94600.0,94584.0,0.3608]
[1736363596123,0.05287,94594.0,94584.0,0.3608]
[1736363596319,0.052873,94590.0,94584.0,0.3608]
[1736363596520,0.052875,94585.0,94584.0,0.3608]
[1736363596721,0.052877,94581.0,94580.0,0.0075858]
[1736363597020,0.052882,94573.0,94572.0,0.3608]
[1736363597626,0.3608,94587.0,94561.0,0.3608]
[1736363597926,0.37162717,94587.0,94561.0,0.3608]
[1736363598130,0.052884,94569.0,94561.0,0.3608]
[1736363598330,0.002,94581.0,94562.0,0.3608]
[1736363598522,0.002,94581.0,94579.0,0.3608]
[1736363598722,0.002,94581.0,94579.0,0.413678]
[1736363599119,0.1634,94608.0,94579.0,0.413678]
[1736363599120,0.4608,94620.0,94584.0,0.001]
[1736363599328,0.01110779,94607.0,94599.0,0.3608]
[1736363599826,0.052867,94601.0,94599.0,0.3608]
[1736363600027,0.052867,94601.0,94591.0,0.3608]
[1736363600233,0.052871,94592.0,94591.0,0.3608]
[1736363601034,0.052877,94582.0,94579.0,0.34438592]
[1736363601628,0.052877,94582.0,94579.0,0.34038592]
[1736363602525,0.01114584,94592.0,94579.0,0.34138592]
[1736363602733,0.052874,94588.0,94579.0,0.34138592]
[1736363602936,0.052874,94587.0,94579.0,0.34138592]
[1736363603134,0.05287,94594.0,94581.0,0.3608]
[1736363603428,0.24830102,94591.0,94581.0,0.3608]
[1736363603736,0.052877,94583.0,94581.0,0.3608]
[1736363604623,0.052878,94580.0,94579.0,0.002]
[1736363604830,0.052882,94572.0,94571.0,0.3608]
[1736363605032,0.05289,94559.0,94549.0,0.3608]
[1736363605426,0.052893,94553.0,94549.0,0.3608]
[1736363605628,0.3608,94552.0,94542.0,0.3608]
[1736363605827,0.3608,94552.0,94526.0,1.5]
[1736363606035,0.60910102,94552.0,94525.0,0.3608]
[1736363606234,0.052904,94534.0,94524.0,0.052909]
[1736363606533,0.052904,94533.0,94522.0,0.00158691]
[1736363606734,0.052906,94531.0,94522.0,0.05449691]
[1736363606929,0.3608,94542.0,94522.0,0.00158691]
[1736363607126,0.3608,94542.0,94526.0,0.003]
[1736363607327,0.4137,94542.0,94532.0,0.052905]
[1736363607531,0.052902,94538.0,94531.0,0.3608]
[1736363607733,0.001,94533.0,94531.0,0.3608]
[1736363608036,0.001,94533.0,94532.0,0.052905]
[1736363608422,0.001,94533.0,94532.0,0.413705]
[1736363608623,0.001,94533.0,94532.0,1.913705]
[1736363608931,0.001,94533.0,94532.0,1.8608]
[1736363609137,0.001,94533.0,94522.0,0.00458691]
[1736363609322,0.001,94533.0,94523.0,0.3608]
[1736363609323,0.052908,94526.0,94523.0,0.3608]
[1736363609521,0.001,94533.0,94522.0,1.50458691]
[1736363609737,0.053905,94533.0,94525.0,0.052908]
[1736363609927,0.052905,94533.0,94526.0,0.001]
[1736363610122,0.052905,94533.0,94526.0,0.053908]
[1736363610337,0.052905,94533.0,94527.0,0.3608]
[1736363610637,0.052909,94524.0,94523.0,0.001]
[1736363610835,0.413709,94524.0,94523.0,0.001]
[1736363611037,0.413709,94524.0,94522.0,0.00158691]
[1736363611238,0.052915,94514.0,94493.0,0.3608]
[1736363611426,0.052915,94514.0,94502.0,0.3608]
[1736363611625,0.052916,94513.0,94503.0,0.052921]
[1736363611827,0.052916,94512.0,94504.0,0.05292]